bitfinex-derivatives/quotes_BTCF0:USTF0_20250509
["timestamp","ask_amount","ask_price","bid_price","bid_amount"]
[1746819922600,0.9165579,103160.0,103150.0,0.5488826]
[1746819923607,0.9494579,103160.0,103150.0,0.5488826]
[1746819925201,0.9494579,103160.0,103150.0,0.3588826]
[1746819929108,0.9494579,103160.0,103150.0,0.2288826]
[1746819929607,0.7904379,103160.0,103150.0,0.5588826]
[1746819929807,0.9164379,103160.0,103150.0,0.5588826]
[1746819931412,0.7904379,103160.0,103150.0,0.5588826]
[1746819931611,0.6760709,103160.0,103150.0,0.6692096]
[1746819931801,0.6760709,103160.0,103150.0,1.0906096]
[1746819932002,0.5501109,103160.0,103150.0,1.0906096]
[1746819932202,0.3901109,103160.0,103150.0,1.0906096]
[1746819934806,0.3901109,103160.0,103150.0,0.9802826]
[1746819938214,0.5004379,103160.0,103150.0,0.9802826]
[1746819938815,0.3901109,103160.0,103150.0,0.9802826]
[1746819939617,0.45477641,103160.0,103150.0,0.9802826]
[1746819941213,0.61477641,103160.0,103150.0,0.9802826]
[1746819942220,0.45477641,103160.0,103150.0,0.9802826]
[1746819943221,0.61477641,103160.0,103150.0,0.9802826]
[1746819944321,0.45477641,103160.0,103150.0,0.9802826]
[1746819946426,0.39017201,103160.0,103150.0,0.9802826]
[1746819958131,0.39017201,103160.0,103150.0,1.1402826]
[1746819959329,0.39017201,103160.0,103150.0,0.9802826]
[1746819959730,0.50049901,103160.0,103150.0,0.5588826]
[1746819960129,0.66049901,103160.0,103150.0,0.5588826]
[1746819962956,0.72510483,103160.0,103150.0,0.5588826]
[1746819964447,0.72510483,103160.0,103150.0,0.5896826]
[1746819965136,0.56510483,103160.0,103150.0,0.5896826]
[1746819966545,0.45477783,103160.0,103150.0,0.5896826]
[1746819967158,0.45477783,103160.0,103150.0,0.6201826]
[1746819969146,0.45477783,103160.0,103150.0,0.9809826]
[1746819969546,0.45477783,103160.0,103150.0,0.6201826]
[1746819970442,0.45477783,103160.0,103150.0,0.9809826]
[1746819970643,0.36437783,103160.0,103150.0,1.0913096]
[1746819971546,0.39727783,103160.0,103150.0,1.0913096]
[1746819971946,0.46227783,103160.0,103150.0,0.9809826]
[1746819973351,0.57260483,103160.0,103150.0,0.9809826]
[1746819973651,0.57260483,103160.0,103150.0,0.4263]
[1746819973851,0.1938826,103150.0,103140.0,0.01440883]
[1746819974152,0.1939014,103140.0,103130.0,0.7160715]
[1746819974347,0.2898014,103140.0,103130.0,1.0560715]
[1746819974540,0.2898014,103140.0,103130.0,1.15302239]
[1746819977553,0.3227014,103140.0,103130.0,1.15302239]
[1746819977754,0.3227014,103140.0,103130.0,1.19840811]
[1746819978855,0.3299714,103140.0,103130.0,1.19840811]
[1746819979554,0.3299714,103140.0,103130.0,1.16730811]
[1746819979750,0.3299714,103140.0,103130.0,1.07035722]
[1746819980456,0.50248311,103140.0,103130.0,1.07035722]
[1746819980659,0.50248311,103140.0,103130.0,1.10045722]
[1746819982361,0.50248311,103140.0,103130.0,1.21078422]
[1746819982555,0.50248311,103140.0,103130.0,1.10045722]
[1746819982756,0.50248311,103140.0,103130.0,1.21078422]
[1746819983660,0.40383879,103140.0,103130.0,1.21078422]
[1746819985869,0.40383879,103140.0,103130.0,1.10045722]
[1746819986161,0.56383879,103140.0,103130.0,1.10045722]
[1746819986362,0.58861572,103140.0,103130.0,1.10045722]
[1746819987162,0.42861572,103140.0,103130.0,1.10045722]
[1746819995769,0.44861572,103140.0,103130.0,1.10045722]
[1746819996171,0.55894272,103140.0,103130.0,1.10045722]
[1746819996870,0.53414542,103140.0,103130.0,1.10045722]
[1746819997167,0.69414542,103140.0,103130.0,1.10045722]
[1746819997368,0.58381842,103140.0,103130.0,1.10045722]
[1746819998271,0.40381842,103140.0,103130.0,1.21078422]
[1746819998671,0.46413842,103140.0,103130.0,1.21078422]
[1746820002268,0.46409842,103140.0,103130.0,1.21078422]
[1746820003467,0.14491702,103140.0,103130.0,1.21078422]
[1746820003774,0.11401702,103140.0,103130.0,1.30774451]
[1746820004276,0.21266134,103140.0,103130.0,1.46774451]
[1746820005766,0.24396134,103140.0,103130.0,1.46774451]
[1746820006173,0.24396134,103140.0,103130.0,1.30774451]
[1746820007374,0.21266134,103140.0,103130.0,1.30774451]
[1746820008278,0.11401702,103140.0,103130.0,1.46774451]
[1746820009670,0.11401702,103140.0,103130.0,1.70343151]
[1746820009877,0.11401702,103140.0,103130.0,1.59310451]
[1746820012071,0.04017,103140.0,103130.0,1.59310451]
[1746820013676,0.00727,103140.0,103130.0,1.59310451]
[1746820020686,0.00727,103140.0,103130.0,1.80039151]
[1746820020979,0.00727,103140.0,103130.0,1.69006451]
[1746820021382,0.00727,103140.0,103130.0,1.80039151]
[1746820022574,0.00727,103140.0,103130.0,1.59310451]
[1746820026683,0.03857,103140.0,103130.0,1.59310451]
[1746820027973,0.00727,103140.0,103130.0,1.59310451]
[1746820028384,0.03857,103140.0,103130.0,1.59310451]
[1746820028685,0.00727,103140.0,103130.0,1.59310451]
[1746820029088,0.00727,103140.0,103130.0,1.43310451]
[1746820030184,0.094,103150.0,103140.0,0.1939014]
[1746820030492,0.10674702,103160.0,103150.0,0.1938826]
[1746820030786,0.10674702,103160.0,103150.0,1.2473896]
[1746820030986,0.16684702,103160.0,103150.0,1.2473896]
[1746820031177,0.16684702,103160.0,103150.0,1.4073896]
[1746820031377,0.16684702,103160.0,103150.0,1.50434989]
[1746820032178,0.16684702,103160.0,103150.0,1.51386775]
[1746820033083,0.16684702,103160.0,103150.0,1.67386775]
[1746820033387,0.16684702,103160.0,103150.0,1.51386775]
[1746820033578,0.19854702,103160.0,103150.0,1.51386775]
[1746820033775,0.10674702,103160.0,103150.0,1.72419475]
[1746820033973,0.10264432,103170.0,103160.0,0.1938638]
[1746820034179,0.10264432,103170.0,103160.0,1.3919178]
[1746820034385,0.10264432,103170.0,103160.0,1.5168778]
[1746820034586,0.17236668,103170.0,103160.0,1.37852289]
[1746820034887,0.17236668,103170.0,103160.0,1.48884989]
[1746820035987,0.17436668,103170.0,103160.0,1.48884989]
[1746820036185,0.17436668,103170.0,103160.0,1.49084989]
[1746820036387,0.17436668,103170.0,103160.0,1.61588989]
[1746820036591,0.17236668,103170.0,103160.0,1.61788989]
[1746820037189,0.17236668,103170.0,103160.0,1.45788989]
[1746820039491,0.0985,103170.0,103160.0,1.45788989]
[1746820041184,0.0985,103170.0,103160.0,1.33284989]
[1746820041383,0.0985,103170.0,103160.0,1.58276989]
[1746820045593,0.0985,103170.0,103160.0,1.94356989]
[1746820053415,0.0985,103170.0,103160.0,1.81868989]
[1746820054101,0.2585,103170.0,103160.0,1.81868989]
[1746820055113,0.4523451,103170.0,103160.0,1.44119589]
[1746820055310,0.5626721,103170.0,103160.0,1.40809589]
[1746820055505,0.4523451,103170.0,103160.0,1.40809589]
[1746820055909,0.5626721,103170.0,103160.0,0.364]
[1746820056112,0.9096041,103170.0,103160.0,0.7248]
[1746820057116,0.6596041,103170.0,103160.0,0.9186638]
[1746820057616,0.6616041,103170.0,103160.0,0.7228]
[1746820057810,0.6616041,103170.0,103160.0,0.3628]
[1746820058007,0.6616041,103170.0,103160.0,0.5566638]
[1746820058207,1.0224041,103170.0,103160.0,0.31]
[1746820058409,0.1938638,103160.0,103150.0,0.3608]
[1746820058618,0.1938638,103160.0,103140.0,0.83106507]
[1746820058619,0.1938826,103150.0,103140.0,0.47026507]
[1746820058805,0.2910826,103150.0,103140.0,0.83026507]
[1746820059009,0.2910826,103150.0,103140.0,0.6819319]
[1746820059206,0.4510826,103150.0,103140.0,0.6508319]
[1746820059406,0.4510826,103150.0,103140.0,1.1219589]
[1746820059612,0.4510826,103150.0,103140.0,1.1530589]
[1746820060415,0.4510826,103150.0,103140.0,1.0447319]
[1746820061411,0.4510826,103150.0,103140.0,1.0467319]
[1746820062211,0.4510826,103150.0,103140.0,1.0447319]
[1746820062620,0.4510826,103150.0,103140.0,1.0427319]
[1746820064912,0.4510826,103150.0,103140.0,1.1530589]
[1746820067723,0.4510826,103150.0,103140.0,1.1855589]
[1746820068424,0.4583526,103150.0,103140.0,1.1855589]
[1746820070817,0.4583526,103150.0,103140.0,1.2176589]
[1746820071125,0.2983526,103150.0,103140.0,1.2176589]
[1746820073433,0.2983526,103150.0,103140.0,1.1073319]
[1746820073637,0.2983526,103150.0,103140.0,1.2176589]
[1746820084139,0.2341526,103150.0,103140.0,1.2176589]
[1746820085733,0.2999526,103150.0,103140.0,1.2176589]
[1746820086142,0.4599526,103150.0,103140.0,1.2176589]
[1746820087243,0.2999526,103150.0,103140.0,1.2176589]
[1746820088935,0.2999526,103150.0,103140.0,1.0103859]
[1746820089141,0.4102796,103150.0,103140.0,0.9457859]
[1746820090140,0.5702796,103150.0,103140.0,0.9773859]
[1746820091341,0.4102796,103150.0,103140.0,0.9773859]
[1746820091535,0.41989202,103150.0,103140.0,0.9773859]
[1746820091739,0.51853634,103150.0,103140.0,0.9773859]
[1746820091943,0.40820934,103150.0,103140.0,0.9773859]
[1746820092141,0.67853634,103150.0,103140.0,0.9457859]
[1746820093037,0.67853634,103150.0,103140.0,0.5849859]
[1746820102657,0.67853634,103150.0,103140.0,0.3911]
[1746820102950,0.67853634,103150.0,103140.0,0.5850014]
[1746820106251,0.67853634,103150.0,103140.0,0.6160014]
[1746820108355,0.67853634,103150.0,103140.0,0.4221]
[1746820108553,0.67853634,103150.0,103140.0,0.6160014]
[1746820113653,0.67853634,103150.0,103140.0,0.9768014]
[1746820113957,0.80297634,103150.0,103140.0,0.9768014]
[1746820114150,0.53264934,103150.0,103140.0,1.0071014]
[1746820115260,0.64297634,103150.0,103140.0,1.0071014]
[1746820117056,0.64297634,103150.0,103140.0,0.4524]
[1746820117353,0.80297634,103150.0,103140.0,0.4524]
[1746820117660,0.80297634,103150.0,103140.0,0.0621]
[1746820117860,1.12297634,103150.0,103140.0,0.0621]
[1746820118058,0.69264934,103150.0,103140.0,0.3921]
[1746820118358,0.81297634,103150.0,103140.0,0.4221]
[1746820118754,0.70264934,103150.0,103140.0,0.4221]
[1746820118954,0.70464934,103150.0,103140.0,0.4221]
[1746820119154,0.81497634,103150.0,103140.0,0.4221]
[1746820119861,0.70464934,103150.0,103140.0,0.4221]
[1746820120059,0.81497634,103150.0,103140.0,0.4221]
[1746820120256,0.81697634,103150.0,103140.0,0.4221]
[1746820121058,0.70664934,103150.0,103140.0,0.4221]
[1746820121255,0.46379692,103150.0,103140.0,1.0871284]
[1746820121457,0.58819692,103150.0,103140.0,1.0871284]
[1746820122162,0.42819692,103150.0,103140.0,1.1368014]
[1746820122364,0.45272902,103150.0,103140.0,1.1368014]
[1746820123265,0.45272902,103150.0,103140.0,0.9768014]
[1746820125061,0.56305602,103150.0,103140.0,0.4221]
[1746820125263,0.66655602,103150.0,103140.0,0.6160014]
[1746820125461,0.66655602,103150.0,103140.0,0.3060014]
[1746820126171,0.85443725,103150.0,103140.0,0.3060014]
[1746820126965,0.85443725,103150.0,103140.0,0.2860014]
[1746820127862,0.74411025,103150.0,103140.0,0.2860014]
[1746820128061,0.64061025,103150.0,103140.0,0.6468014]
[1746820128565,0.64061025,103150.0,103140.0,0.7571284]
[1746820129070,0.64061025,103150.0,103140.0,0.6468014]
[1746820129761,0.51743383,103150.0,103140.0,0.6468014]
[1746820131069,0.54783383,103150.0,103140.0,0.6468014]
[1746820132270,0.61263383,103150.0,103140.0,0.6468014]
[1746820132971,0.61263383,103150.0,103140.0,0.0921]
[1746820133171,0.73296083,103150.0,103140.0,0.3821]
[1746820133569,0.73296083,103150.0,103140.0,0.0621]
[1746820134277,0.89296083,103150.0,103140.0,0.0621]
[1746820135377,1.58376083,103150.0,103140.0,0.0311]
[1746820136181,1.42376083,103150.0,103140.0,0.0311]
[1746820137279,1.3992528,103150.0,103140.0,0.0311]
[1746820138170,1.5592528,103150.0,103140.0,0.0311]
[1746820139683,1.2592528,103150.0,103140.0,0.0311]
[1746820140582,1.4692528,103150.0,103140.0,0.0311]
[1746820142178,1.5795798,103150.0,103140.0,0.0311]
[1746820142373,0.1939014,103140.0,103130.0,0.04648572]
[1746820142577,0.97102366,103140.0,103130.0,0.04648572]
[1746820143072,0.97102366,103140.0,103130.0,0.24040592]
[1746820143282,1.13102366,103140.0,103130.0,0.24040592]
[1746820143482,1.13202366,103140.0,103130.0,0.24040592]
[1746820143983,1.02169666,103140.0,103130.0,0.04648572]
[1746820144177,1.02169666,103140.0,103130.0,0.24040592]
[1746820144377,1.13202366,103140.0,103130.0,0.24040592]
[1746820144576,1.02169666,103140.0,103130.0,0.24040592]
[1746820145183,1.12019814,103140.0,103130.0,0.24040592]
[1746820145583,1.12019814,103140.0,103130.0,0.04648572]
[1746820145782,1.12019814,103140.0,103130.0,0.27240592]
[1746820147575,1.01714114,103140.0,103130.0,0.27240592]
[1746820147775,1.12746814,103140.0,103130.0,0.27240592]
[1746820148078,0.81746814,103140.0,103130.0,0.56240592]
[1746820148788,0.70714114,103140.0,103130.0,0.56240592]
[1746820149083,0.65746814,103140.0,103130.0,0.56240592]
[1746820153290,0.81746814,103140.0,103130.0,0.56240592]
[1746820154092,0.65746814,103140.0,103130.0,0.56240592]
[1746820155095,0.81746814,103140.0,103130.0,0.56240592]
[1746820155992,0.80746814,103140.0,103130.0,0.59360592]
[1746820156292,0.64746814,103140.0,103130.0,0.59360592]
[1746820156993,0.6109985,103140.0,103130.0,0.59360592]
[1746820161091,0.53714114,103140.0,103130.0,0.59360592]
[1746820163995,0.53714114,103140.0,103130.0,0.39968572]
[1746820164193,0.53714114,103140.0,103130.0,0.59360592]
[1746820169300,0.60201891,103140.0,103130.0,0.59360592]
[1746820170495,0.66277891,103140.0,103130.0,1.06473292]
[1746820171204,0.66277891,103140.0,103130.0,1.22473292]
[1746820171503,0.66277891,103140.0,103130.0,1.11440592]
[1746820172206,0.80350591,103140.0,103130.0,0.95440592]
[1746820172503,0.83540591,103140.0,103130.0,0.95440592]
[1746820173106,0.83540591,103140.0,103130.0,1.11440592]
[1746820174104,0.83540591,103140.0,103130.0,0.95440592]
[1746820175406,0.72507891,103140.0,103130.0,0.95440592]
[1746820176398,0.41417891,103140.0,103130.0,1.06473292]
[1746820176601,0.38127891,103140.0,103130.0,1.06473292]
[1746820176805,0.38127891,103140.0,103130.0,1.16169321]
[1746820177004,0.31655216,103140.0,103130.0,1.16169321]
[1746820177205,0.31655216,103140.0,103130.0,1.32169321]
[1746820178309,0.31655216,103140.0,103130.0,1.32269321]
[1746820178503,0.31555216,103140.0,103130.0,1.32269321]
[1746820178702,0.31555216,103140.0,103130.0,1.32369321]
[1746820179410,0.31555216,103140.0,103130.0,1.38369321]
[1746820180702,0.29084624,103140.0,103130.0,1.38369321]
[1746820182007,0.09694484,103140.0,103130.0,1.38369321]
[1746820182212,0.09694484,103140.0,103130.0,1.59098021]
[1746820183913,0.02299826,103140.0,103130.0,1.59098021]
[1746820187118,0.02299826,103140.0,103130.0,1.48065321]
[1746820188413,0.02299826,103140.0,103130.0,1.59098021]
[1746820189615,0.02299826,103140.0,103130.0,1.48065321]
[1746820197119,0.02299826,103140.0,103130.0,1.38369321]
[1746820197309,0.02299826,103140.0,103130.0,1.63177321]
[1746820197511,0.05489826,103140.0,103130.0,1.63177321]
[1746820198216,0.05489826,103140.0,103130.0,1.47177321]
[1746820198616,0.02299826,103140.0,103130.0,1.47177321]
[1746820199022,0.05489826,103140.0,103130.0,1.47177321]
[1746820199326,0.05489826,103140.0,103130.0,1.63177321]
[1746820200118,0.05489826,103140.0,103130.0,1.74210021]
[1746820200325,8e-08,103170.0,103160.0,0.1938638]
[1746820200511,0.03270008,103170.0,103160.0,1.7869578]
[1746820200711,0.03270008,103170.0,103160.0,1.6278038]
[1746820200915,0.03270008,103170.0,103160.0,1.94541809]
[1746820201115,0.03270008,103170.0,103160.0,1.63672409]
[1746820201310,0.25924518,103170.0,103160.0,1.60392409]
[1746820201811,0.26424518,103170.0,103160.0,1.60492409]
[1746820202222,0.29474518,103170.0,103160.0,1.55525109]
[1746820202625,0.29974518,103170.0,103160.0,1.55525109]
[1746820202825,0.2997451,103170.0,103160.0,1.55525109]
[1746820203035,0.2947451,103170.0,103160.0,1.55425109]
[1746820203224,0.4497451,103170.0,103160.0,1.55825109]
[1746820204228,0.2897451,103170.0,103160.0,1.55825109]
[1746820205126,0.4497451,103170.0,103160.0,1.55825109]
[1746820205427,0.4497451,103170.0,103160.0,1.52755109]
[1746820206226,0.4497451,103170.0,103160.0,1.41722409]
[1746820206426,0.4497451,103170.0,103160.0,1.52755109]
[1746820207832,0.2559,103170.0,103160.0,1.52755109]
[1746820210233,0.4497451,103170.0,103160.0,1.41722409]
[1746820210433,0.4497451,103170.0,103160.0,1.52755109]
[1746820210632,0.4497451,103170.0,103160.0,1.41722409]
[1746820210833,0.5600721,103170.0,103160.0,1.38642409]
[1746820211035,0.4497451,103170.0,103160.0,1.38642409]
[1746820212535,0.4497451,103170.0,103160.0,1.38442409]
[1746820213033,0.4497451,103170.0,103160.0,1.38242409]
[1746820213330,0.6840321,103170.0,103160.0,0.37]
[1746820213534,0.6840321,103170.0,103160.0,0.3238638]
[1746820214435,0.6860321,103170.0,103160.0,0.3238638]
[1746820214634,0.6860321,103170.0,103160.0,0.5038638]
[1746820214836,0.5757051,103170.0,103160.0,0.5038638]
[1746820215539,0.5767051,103170.0,103160.0,0.5038638]
[1746820215924,0.5767051,103170.0,103160.0,0.8646638]
[1746820216235,0.4527451,103170.0,103160.0,0.9749908]
[1746820216436,0.5767051,103170.0,103160.0,1.0069908]
[1746820217239,0.4167051,103170.0,103160.0,1.0392908]
[1746820218131,0.5767051,103170.0,103160.0,1.0392908]
[1746820218539,0.5767051,103170.0,103160.0,1.0069908]
[1746820219038,0.5767051,103170.0,103160.0,0.8966638]
[1746820225842,0.6753576,103170.0,103160.0,0.8966638]
[1746820226043,0.6753576,103170.0,103160.0,0.9291638]
[1746820229144,0.5153576,103170.0,103160.0,0.9291638]
[1746820229343,0.4167051,103170.0,103160.0,0.9291638]
[1746820229546,0.4167051,103170.0,103160.0,0.9621638]
[1746820230147,0.5767051,103170.0,103160.0,0.9621638]
[1746820232942,0.5767051,103170.0,103160.0,1.0724908]
[1746820233144,0.4167051,103170.0,103160.0,1.0724908]
[1746820233349,0.3534651,103170.0,103160.0,1.16942289]
[1746820233645,0.0357,103170.0,103160.0,1.27974989]
[1746820234148,0.2295451,103170.0,103160.0,1.27974989]
[1746820234448,0.2295451,103170.0,103160.0,1.16942289]
[1746820234746,0.2285451,103170.0,103160.0,1.16942289]
[1746820234947,0.0347,103170.0,103160.0,1.16942289]
[1746820235145,0.2265451,103170.0,103160.0,1.16942289]
[1746820235341,0.0327,103170.0,103160.0,1.27974989]
[1746820237950,0.2265451,103170.0,103160.0,1.27974989]
[1746820238143,0.0327,103170.0,103160.0,1.27974989]
[1746820239047,0.2265451,103170.0,103160.0,1.27974989]
[1746820239243,0.2265451,103170.0,103160.0,1.16942289]
[1746820239850,0.0327,103170.0,103160.0,1.16942289]
[1746820241254,0.0327,103170.0,103160.0,1.27974989]
[1746820242146,0.03996,103170.0,103160.0,1.27974989]
[1746820242753,0.00726,103170.0,103160.0,1.27974989]
[1746820243250,0.00726,103170.0,103160.0,1.43974989]
[1746820244447,0.00726,103170.0,103160.0,1.44374989]
[1746820245251,0.00726,103170.0,103160.0,1.28374989]
[1746820249548,0.00726,103170.0,103160.0,1.06309589]
[1746820250056,0.00726,103170.0,103160.0,1.28374989]
[1746820258961,1e-07,103170.0,103160.0,1.39407689]
[1746820259162,0.03195478,103180.0,103170.0,0.1938451]
[1746820259354,0.0986525,103190.0,103180.0,0.1938263]
[1746820259561,0.1286525,103190.0,103180.0,1.2283803]
[1746820259762,0.1286525,103190.0,103180.0,1.32531239]
[1746820260159,0.2886525,103190.0,103180.0,1.32531239]
[1746820260757,0.2896525,103190.0,103180.0,1.32531239]
[1746820261162,0.1296525,103190.0,103180.0,1.32531239]
[1746820261361,0.1296525,103190.0,103180.0,1.34019516]
[1746820261562,0.1296525,103190.0,103180.0,1.34997224]
[1746820261867,0.1316525,103190.0,103180.0,1.34997224]
[1746820262067,0.1316525,103190.0,103180.0,1.23964524]
[1746820262268,0.1961525,103190.0,103180.0,1.34997224]
[1746820262867,0.1961525,103190.0,103180.0,1.34998004]
[1746820263368,0.3561525,103190.0,103180.0,1.34998004]
[1746820263966,0.2575,103190.0,103180.0,1.34998004]
[1746820264155,0.0975,103190.0,103180.0,1.34998004]
[1746820264668,0.0975,103190.0,103180.0,1.34997644]
[1746820266370,0.2575,103190.0,103180.0,1.34997644]
[1746820266663,0.2575,103190.0,103180.0,1.34019936]
[1746820266963,0.2575,103190.0,103180.0,1.35375236]
[1746820267770,0.2575,103190.0,103180.0,1.46407936]
[1746820268268,0.0975,103190.0,103180.0,1.46407658]
[1746820270057,0.0975,103190.0,103180.0,1.46407706]
[1746820270557,0.0975,103190.0,103180.0,1.464073]
[1746820272568,0.0975,103190.0,103180.0,1.340193]
[1746820272870,0.033,103190.0,103180.0,1.463993]
[1746820273258,0.003,103190.0,103180.0,1.57432]
[1746820273469,0.003,103190.0,103180.0,1.463993]
[1746820274772,0.002,103190.0,103180.0,1.463993]
[1746820275071,0.3044125,103200.0,103190.0,0.1938075]
[1746820275264,0.3044125,103200.0,103190.0,1.11730515]
[1746820275663,0.3044125,103200.0,103190.0,1.21421846]
[1746820275859,0.20576,103200.0,103190.0,1.21421846]
[1746820276065,0.36576,103200.0,103190.0,1.21421846]
[1746820276873,0.36576,103200.0,103190.0,1.22881676]
[1746820278466,0.36576,103200.0,103190.0,1.35261676]
[1746820278667,0.36576,103200.0,103190.0,1.32061676]
[1746820279259,0.36576,103200.0,103190.0,1.35181676]
[1746820279866,0.36576,103200.0,103190.0,1.35177676]
[1746820280575,0.36576,103200.0,103190.0,1.35174546]
[1746820282474,0.36576,103200.0,103190.0,1.35175254]
[1746820282975,0.30396,103200.0,103190.0,1.35175254]
[1746820283173,0.14396,103200.0,103190.0,1.35175254]
[1746820283778,0.20746,103200.0,103190.0,1.35175254]
[1746820284169,0.36746,103200.0,103190.0,1.35175254]
[1746820284475,0.36746,103200.0,103190.0,1.24142554]
[1746820284677,0.36746,103200.0,103190.0,1.35175254]
[1746820285878,0.36746,103200.0,103190.0,1.24143387]
[1746820286077,0.36746,103200.0,103190.0,1.35176087]
[1746820286371,0.36746,103200.0,103190.0,1.33690611]
[1746820286576,0.36746,103200.0,103190.0,1.35176333]
[1746820289478,0.36746,103200.0,103190.0,1.35177349]
[1746820291377,0.36746,103200.0,103190.0,1.35176615]
[1746820293180,0.36746,103200.0,103190.0,1.35176838]
[1746820294787,0.36746,103200.0,103190.0,1.71256838]
[1746820295083,0.36746,103200.0,103190.0,1.71256906]
[1746820296384,0.3602,103200.0,103190.0,1.71256906]
[1746820297390,0.3602,103200.0,103190.0,1.71257038]
[1746820298077,0.3602,103200.0,103190.0,1.68137038]
[1746820298782,0.3602,103200.0,103190.0,1.68137331]
[1746820299186,0.3602,103200.0,103190.0,1.71167331]
[1746820301183,0.36746,103200.0,103190.0,1.71167331]
[1746820304084,0.36746,103200.0,103190.0,1.71168493]
[1746820305684,0.36746,103200.0,103190.0,1.69680611]
[1746820305878,0.36746,103200.0,103190.0,1.71168471]
[1746820307579,0.36746,103200.0,103190.0,1.57105766]
[1746820307783,0.7819027,103200.0,103190.0,0.36947685]
[1746820307985,0.1938075,103190.0,103180.0,0.14833317]
[1746820308291,0.8610345,103190.0,103180.0,0.31833317]
[1746820308491,1.1079465,103190.0,103180.0,0.31833317]
[1746820308681,0.6208265,103190.0,103180.0,0.51215947]
[1746820308880,0.4135875,103190.0,103180.0,0.62248647]
[1746820309082,0.4135875,103190.0,103180.0,0.79248647]
[1746820309384,0.5735875,103190.0,103180.0,0.68215947]
[1746820309583,0.58313158,103190.0,103180.0,0.68215947]
[1746820309784,0.58313158,103190.0,103180.0,0.68415947]
[1746820310088,0.58313158,103190.0,103180.0,0.68615947]
[1746820310290,0.58313158,103190.0,103180.0,0.5378263]
[1746820310484,0.58313158,103190.0,103180.0,0.5701263]
[1746820312392,0.69345858,103190.0,103180.0,0.5701263]
[1746820312688,0.69345858,103190.0,103180.0,0.5378263]
[1746820313591,0.79185235,103190.0,103180.0,0.5378263]
[1746820316098,0.79385235,103190.0,103180.0,0.5338263]
[1746820316287,0.79485235,103190.0,103180.0,0.5338263]
[1746820316894,0.69645858,103190.0,103180.0,0.5338263]
[1746820318600,0.69645858,103190.0,103180.0,0.5650263]
[1746820323200,0.1938451,103170.0,103160.0,0.7000436]
[1746820323400,0.1938451,103170.0,103160.0,1.1316436]
[1746820323401,0.4278521,103170.0,103160.0,1.1316436]
[1746820323602,0.5209521,103170.0,103160.0,1.0831783]
[1746820323816,0.5209521,103170.0,103160.0,0.7308]
[1746820324104,0.1938638,103160.0,103150.0,0.2554826]
[1746820324396,0.1938826,103150.0,103140.0,0.50913317]
[1746820324597,0.5209896,103150.0,103140.0,0.86953317]
[1746820324801,0.5209896,103150.0,103140.0,1.06343457]
[1746820325189,0.6809896,103150.0,103140.0,1.06343457]
[1746820325802,0.73860271,103150.0,103140.0,1.06343457]
[1746820326302,0.73960271,103150.0,103140.0,1.06943457]
[1746820326503,0.5716626,103150.0,103140.0,1.09983457]
[1746820326704,0.5716626,103150.0,103140.0,1.10183457]
[1746820326902,0.5706626,103150.0,103140.0,1.09783457]
[1746820327207,0.4469826,103150.0,103140.0,1.09783457]
[1746820327398,0.5706626,103150.0,103140.0,1.09783457]
[1746820328109,0.4106626,103150.0,103140.0,1.09783457]
[1746820328607,0.0308,103150.0,103140.0,1.09783457]
[1746820328800,0.3660217,103160.0,103150.0,0.1938826]
[1746820328997,0.3660217,103160.0,103150.0,1.18802271]
[1746820329210,0.3960217,103160.0,103150.0,1.34802271]
[1746820329410,0.3960217,103160.0,103150.0,1.27702409]
[1746820333603,0.3566854,103170.0,103160.0,0.1938638]
[1746820333810,0.5129654,103170.0,103160.0,0.6251638]
[1746820334211,0.5129654,103170.0,103160.0,0.88210529]
[1746820334814,0.5202254,103170.0,103160.0,0.88210529]
[1746820335114,0.5222254,103170.0,103160.0,0.88210529]
[1746820335413,0.5232254,103170.0,103160.0,0.88210529]
[1746820336016,0.3995454,103170.0,103160.0,0.88210529]
[1746820336209,0.5232254,103170.0,103160.0,0.88210529]
[1746820336410,0.5232254,103170.0,103160.0,1.24290529]
[1746820337018,0.69116551,103170.0,103160.0,1.24290529]
[1746820338318,0.5232254,103170.0,103160.0,1.24290529]
[1746820339315,0.69116551,103170.0,103160.0,1.24290529]
[1746820339714,0.5232254,103170.0,103160.0,1.24290529]
[1746820339912,0.69116551,103170.0,103160.0,1.24290529]
[1746820341017,0.69116551,103170.0,103160.0,0.88210529]
[1746820341212,0.69116551,103170.0,103160.0,0.7851638]
[1746820342220,0.69116551,103170.0,103160.0,0.6251638]
[1746820343326,0.69116551,103170.0,103160.0,0.9859638]
[1746820343718,0.69116551,103170.0,103160.0,0.6251638]
[1746820345631,0.69116551,103170.0,103160.0,0.9859638]
[1746820345922,0.5231854,103170.0,103160.0,0.9859638]
[1746820346122,0.5231854,103170.0,103160.0,1.1787638]
[1746820349617,0.59692653,103170.0,103160.0,1.1787638]
[1746820351026,0.43410013,103170.0,103160.0,1.443636]
[1746820351525,0.43410013,103170.0,103160.0,1.27569589]
[1746820353130,0.43210013,103170.0,103160.0,1.27769589]
[1746820353319,0.43110013,103170.0,103160.0,1.27769589]
[1746820353825,0.43110013,103170.0,103160.0,1.27569589]
[1746820357025,0.5294939,103170.0,103160.0,1.27569589]
[1746820359531,0.45575277,103170.0,103160.0,1.27569589]
[1746820362132,0.45575277,103170.0,103160.0,1.28517122]
[1746820363130,0.45575277,103170.0,103160.0,1.27569589]
[1746820363629,0.52055277,103170.0,103160.0,1.27569589]
[1746820366936,0.52055277,103170.0,103160.0,1.28542667]
[1746820367638,0.32669377,103170.0,103160.0,1.28542667]
[1746820367838,0.48883887,103170.0,103160.0,1.28542667]
[1746820368145,0.45573887,103170.0,103160.0,1.28542667]
[1746820368340,0.45573887,103170.0,103160.0,1.27569589]
[1746820368539,0.52964023,103170.0,103160.0,1.27569589]
[1746820368739,0.21215513,103170.0,103160.0,1.27569589]
[1746820368945,0.27525513,103170.0,103160.0,1.443636]
[1746820369236,0.17955513,103170.0,103160.0,1.8321081]
[1746820369441,0.17955513,103170.0,103160.0,1.66416799]
[1746820369642,0.17955513,103170.0,103160.0,3.16416799]
[1746820369943,0.17955513,103170.0,103160.0,1.9557081]
[1746820370331,0.17955513,103170.0,103160.0,3.29760618]
[1746820370533,0.17955513,103170.0,103160.0,3.30160618]
[1746820371645,0.00726,103170.0,103160.0,3.45393935]
[1746820372048,0.00726,103170.0,103160.0,3.55393935]
[1746820372437,0.00726,103170.0,103160.0,3.54993935]
[1746820372641,0.00726,103170.0,103160.0,3.55393935]
[1746820372937,0.00726,103170.0,103160.0,3.19313935]
[1746820373143,0.00726,103170.0,103160.0,3.91473935]
[1746820374648,0.00726,103170.0,103160.0,3.76640618]
[1746820376348,0.00726,103170.0,103160.0,3.66947419]
[1746820376550,0.00726,103170.0,103160.0,3.76640618]
[1746820377652,0.00726,103170.0,103160.0,3.66947419]
[1746820377842,0.00726,103170.0,103160.0,3.76640618]
[1746820378451,0.00726,103170.0,103160.0,3.66640618]
[1746820380049,0.00726,103170.0,103160.0,2.94480618]
[1746820380248,0.00726,103170.0,103160.0,3.54280618]